[Event "SWVG Arnold Classic Prestige All 2019"]
[Site "Sandton"]
[Date "2019.05.18"]
[Round "6.12"]
[White "Tapera, Uzeni"]
[Black "Smit, Devon"]
[Result "0-1"]
[ECO "B78"]
[WhiteElo "1748"]
[BlackElo "1743"]
[Annotator "NA"]
[PlyCount "144"]
[EventDate "2019.05.18"]
[EventType "swiss"]
[EventCountry "RSA"]
[SourceTitle "playchess.com"]
[Source "ChessBase"]
[SourceQuality "1"]
[TimeControl "1500+10"]

1. e4 {[%emt 0:25:10]} c5 {[%emt 0:25:10]} 2. Nf3 {[%emt 0:00:10]} d6 3. d4 {[%emt 0:00:10]} cxd4 {[%emt 0:00:20]} 4. Nxd4 Nf6 {[%emt 0:00:10]} 5. Nc3 {[%emt 0:00:20]} g6 {[%emt 0:00:10]} 6. Be3 {[%emt 0:00:10]} Bg7 {[%emt 0:00:10]} 7. f3 {[%emt 0:00:10]} Nc6 {[%emt 0:00:10]} 8. Qd2 {[%emt 0:00:10]} O-O {[%emt 0:00:10]} 9. Bc4 {[%emt 0:00:10]} Bd7 {[%emt 0:00:10]} 10. O-O-O {[%emt 0:00:10]} Rc8 {[%emt 0:00:10]} 11. Kb1 {[%emt 0:00:10]} Nxd4 {[%emt 0:00:10]} 12. Qxd4 {[%emt 0:00:10]} Ng4 {[%emt 0:00:10]} 13. Bxf7+ {[%emt 0:00:10]} Rxf7 {[%emt 0:00:10]} 14. Qxa7 {[%emt 0:00:10]} Ra8 {[%emt 0:00:10]} 15. Qb6 {[%emt 0:00:10]} Nxe3 {[%emt 0:00:10]} 16. Qxe3 {[%emt 0:00:10]} Qa5 {[%emt 0:00:10]} 17. Rd5 {[%emt 0:00:10]} Qb4 {[%emt 0:00:10]} 18. Nd1 {[%emt 0:00:10]} Be6 {[%emt 0:00:10]} 19. a3 {[%emt 0:00:10]} Qc4 {[%emt 0:00:10]} 20. Rd3 {[%emt 0:00:10]} Qa2+ {[%emt 0:00:10]} 21. Kc1 {[%emt 0:00:10]} Bc4 {[%emt 0:00:10]} 22. Rc3 {[%emt 0:00:10]} Bxc3 {[%emt 0:00:10]} 23. Qxc3 {[%emt 0:00:10]} Rc8 {[%emt 0:00:10]} 24. Kd2 {[%emt 0:00:10]} Be6 {[%emt 0:00:10]} 25. Qe3 {[%emt 0:00:10]} Qc4 {[%emt 0:00:10]} 26. Nc3 {[%emt 0:00:10]} d5 {[%emt 0:00:10]} 27. exd5 {[%emt 0:00:10]} Bxd5 {[%emt 0:00:10]} 28. Kc1 {[%emt 0:00:10]} e6 {[%emt 0:00:10]} 29. Kb1 {[%emt 0:00:10]} Qf4 {[%emt 0:00:10]} 30. Qe1 {[%emt 0:00:10]} Qf5 {[%emt 0:00:10]} 31. h4 {[%emt 0:00:10]} h5 {[%emt 0:00:10]} 32. g4 {[%emt 0:00:10]} Qxf3 {[%emt 0:00:10]} 33. Nxd5 {[%emt 0:00:10]} Qxd5 {[%emt 0:00:10]} 34. gxh5 {[%emt 0:00:10]} Qxh5 {[%emt 0:00:10]} 35. Qxe6 {[%emt 0:00:10]} Qf5 {[%emt 0:00:10]} 36. Qe2 {[%emt 0:00:10]} Qf3 {[%emt 0:00:10]} 37. Qe1 {[%emt 0:00:10]} Rcf8 {[%emt 0:00:10]} 38. Ka2 {[%emt 0:00:10]} Qd5+ {[%emt 0:00:10]} 39. b3 {[%emt 0:00:10]} Rf2 {[%emt 0:00:10]} 40. Kb2 {[%emt 0:00:10]} Qd4+ {[%emt 0:00:10]} 41. Kb1 {[%emt 0:00:10]} Qf6 {[%emt 0:00:10]} 42. Qe4 {[%emt 0:00:10]} Rf1+ {[%emt 0:00:10]} 43. Rxf1 {[%emt 0:00:10]} Qxf1+ {[%emt 0:00:10]} 44. Ka2 {[%emt 0:00:10]} Qf5 {[%emt 0:00:10]} 45. Qc4+ {[%emt 0:00:10]} Kh7 {[%emt 0:00:10]} 46. Kb2 {[%emt 0:00:10]} Rc8 {[%emt 0:00:10]} 47. Qe2 {[%emt 0:00:10]} Qf6+ {[%emt 0:00:10]} 48. Ka2 {[%emt 0:00:10]} Rc7 {[%emt 0:00:10]} 49. h5 {[%emt 0:00:10]} g5 {[%emt 0:00:10]} 50. c4 {[%emt 0:00:10]} Re7 {[%emt 0:00:10]} 51. Qd3+ {[%emt 0:00:10]} Kh6 {[%emt 0:00:10]} 52. a4 {[%emt 0:00:10]} Re1 {[%emt 0:00:10]} 53. Ka3 {[%emt 0:00:10]} Ra1+ {[%emt 0:00:10]} 54. Kb4 {[%emt 0:00:10]} Re1 {[%emt 0:00:10]} 55. a5 {[%emt 0:00:10]} Qe7+ {[%emt 0:00:10]} 56. Kb5 {[%emt 0:00:10]} Re5+ {[%emt 0:00:10]} 57. Ka4 {[%emt 0:00:10]} Qe6 {[%emt 0:00:10]} 58. b4 {[%emt 0:00:10]} Re3 {[%emt 0:00:10]} 59. Qd4 {[%emt 0:00:10]} Re5 {[%emt 0:00:10]} 60. b5 {[%emt 0:00:10]} Kxh5 {[%emt 0:00:10]} 61. Qd1+ {[%emt 0:00:10]} g4 {[%emt 0:00:10]} 62. Qh1+ Kg5 {[%emt 0:00:10]} 63. Qc1+ {[%emt 0:00:20]} Re3 {[%emt 0:00:10]} 64. b6 {[%emt 0:00:10]} Kg6 {[%emt 0:00:10]} 65. Qc2+ {[%emt 0:00:10]} Qe4 {[%emt 0:00:10]} 66. Qxe4+ {[%emt 0:00:10]} Rxe4 {[%emt 0:00:10]} 67. a6 bxa6 {[%emt 0:00:10]} 68. b7 {[%emt 0:00:20]} Re8 {[%emt 0:00:10]} 69. c5 {[%emt 0:00:10]} g3 {[%emt 0:00:10]} 70. c6 g2 {[%emt 0:00:10]} 71. c7 {[%emt 0:00:20]} g1=Q {[%emt 0:00:10]} 72. b8=Q {[%emt 0:00:10]} Qa1+ {[%emt 0:00:10] Qc8 [%clk 0:00:00] Qd4+ [%clk 0:00:00]} 0-1

[Event "SWVG Arnold Classic Prestige All 2019"]
[Site "Sandton"]
[Date "2019.05.18"]
[Round "7.3"]
[White "Makoto, Rodwell"]
[Black "Oatlhotse, Providence"]
[Result "1-0"]
[ECO "A15"]
[WhiteElo "2369"]
[BlackElo "2289"]
[Annotator "ChessBase"]
[PlyCount "97"]
[EventDate "2019.05.18"]
[EventType "swiss"]
[EventCountry "RSA"]
[SourceTitle "playchess.com"]
[Source "ChessBase"]
[SourceQuality "1"]
[TimeControl "1500+10"]

1. Nf3 {[%emt 0:00:00]} Nf6 {[%emt 0:00:00]} 2. c4 {[%emt 0:25:20]} b6 3. g3 {[%emt 0:00:10]} Ba6 4. d3 {[%emt 0:00:00]} c6 {[%emt 0:00:00]} 5. e4 {[%emt 0:00:00]} d5 {[%emt 0:00:18]} 6. e5 {[%emt 0:00:00]} Nfd7 {[%emt 0:00:05]} 7. e6 {[%emt 0:00:00]} fxe6 {[%emt 0:00:16]} 8. Ng5 {[%emt 0:00:00]} Nf6 {[%emt 0:04:59]} 9. Nxe6 {[%emt 0:00:00]} Qd6 {[%emt 0:00:13]} 10. Bh3 {[%emt 0:00:00]} Bc8 {[%emt 0:01:45]} 11. Bf4 {[%emt 0:00:00]} Qb4+ {[%emt 0:00:04]} 12. Qd2 {[%emt 0:00:00]} Qxd2+ {[%emt 0:00:19]} 13. Nxd2 {[%emt 0:00:00]} Na6 {[%emt 0:00:02]} 14. Nb3 {[%emt 0:00:00]} h6 {[%emt 0:00:25]} 15. O-O-O {[%emt 0:00:00]} Rg8 {[%emt 0:04:39]} 16. Rhe1 {[%emt 0:00:00]} g5 {[%emt 0:03:00]} 17. Bd2 {[%emt 0:00:00]} Bd7 {[%emt 0:02:38]} 18. Bc3 {[%emt 0:00:00]} Kf7 {[%emt 0:00:54]} 19. Bxf6 {[%emt 0:00:00]} Kxf6 {[%emt 0:00:26]} 20. Nxg5 {[%emt 0:00:00]} Bxh3 {[%emt 0:01:25]} 21. Nxh3 {[%emt 0:00:00]} e5 {[%emt 0:00:01]} 22. f4 {[%emt 0:00:00]} Bd6 {[%emt 0:00:38]} 23. fxe5+ {[%emt 0:00:00]} Bxe5 {[%emt 0:00:02]} 24. Re2 {[%emt 0:00:00]} Rge8 {[%emt 0:02:49]} 25. Rf1+ {[%emt 0:00:00]} Kg7 {[%emt 0:00:01]} 26. Rfe1 {[%emt 0:00:00]} Nb4 {[%emt 0:00:03]} 27. Kd2 {[%emt 0:00:00]} dxc4 {[%emt 0:00:53]} 28. Nc1 {[%emt 0:00:00]} Kf6 {[%emt 0:02:07]} 29. Nf2 {[%emt 0:00:00]} h5 {[%emt 0:00:22]} 30. a3 {[%emt 0:00:00]} Nxd3 {[%emt 0:01:13]} 31. Ncxd3 {[%emt 0:00:00]} cxd3 {[%emt 0:00:01]} 32. Nxd3 {[%emt 0:00:00]} Rad8 {[%emt 0:00:01]} 33. Kc2 {[%emt 0:00:00]} Rd5 {[%emt 0:00:51]} 34. Rf1+ {[%emt 0:00:00]} Kg7 {[%emt 0:00:00]} 35. Rf5 {[%emt 0:00:00]} Red8 {[%emt 0:00:04]} 36. Nxe5 {[%emt 0:00:00]} Rc5+ {[%emt 0:00:11]} 37. Kb3 {[%emt 0:00:00]} Rdd5 {[%emt 0:00:11]} 38. Rxh5 {[%emt 0:00:00]} a5 {[%emt 0:00:10]} 39. h4 {[%emt 0:00:00]} Rb5+ {[%emt 0:00:05]} 40. Ka2 {[%emt 0:00:00]} Rbc5 {[%emt 0:00:11]} 41. Rg5+ {[%emt 0:00:00]} Kf6 {[%emt 0:00:16]} 42. Rf2+ {[%emt 0:00:00]} Ke6 {[%emt 0:00:02]} 43. Nf3 {[%emt 0:00:00]} a4 {[%emt 0:00:08]} 44. Rxd5 {[%emt 0:00:00]} Kxd5 {[%emt 0:00:06]} 45. h5 {[%emt 0:00:00]} Ke4 {[%emt 0:00:02]} 46. h6 {[%emt 0:00:00]} Ra5 {[%emt 0:00:26]} 47. h7 {[%emt 0:00:00]} Ra8 {[%emt 0:00:02]} 48. Ng5+ {[%emt 0:00:00]} Ke3 {[%emt 0:00:01]} 49. Rh2 {[%emt 0:00:00]} 1-0

[Event "SWVG Arnold Classic Prestige All 2019"]
[Site "Sandton"]
[Date "2019.05.18"]
[Round "7.4"]
[White "Mnguni, Jacob Dumisani"]
[Black "Bhawoodien, Shabir Hussain"]
[Result "1-0"]
[ECO "A36"]
[WhiteElo "2141"]
[BlackElo "2020"]
[Annotator "ChessBase"]
[PlyCount "75"]
[EventDate "2019.05.18"]
[EventType "swiss"]
[EventCountry "RSA"]
[SourceTitle "playchess.com"]
[Source "ChessBase"]
[SourceQuality "1"]
[TimeControl "1500+10"]

1. c4 {[%emt 0:00:00]} c5 {[%emt 0:00:00]} 2. g3 {[%emt 0:00:00]} g6 {[%emt 0:00:00]} 3. Bg2 {[%emt 0:00:00]} Bg7 {[%emt 0:00:00]} 4. Nc3 {[%emt 0:00:00]} Nc6 {[%emt 0:00:00]} 5. e3 {[%emt 0:00:01]} e5 {[%emt 0:00:00]} 6. Nge2 {[%emt 0:00:03]} Nge7 {[%emt 0:00:00]} 7. O-O {[%emt 0:00:02]} a6 {[%emt 0:00:00]} 8. d3 {[%emt 0:00:04]} O-O {[%emt 0:00:00]} 9. f4 {[%emt 0:00:20]} d6 {[%emt 0:00:11]} 10. h3 {[%emt 0:00:05]} Rb8 {[%emt 0:00:08]} 11. a4 {[%emt 0:00:20]} Be6 {[%emt 0:00:39]} 12. e4 {[%emt 0:00:20]} Qd7 {[%emt 0:00:56]} 13. Kh2 {[%emt 0:00:10]} f5 {[%emt 0:00:15]} 14. fxe5 {[%emt 0:00:20]} dxe5 {[%emt 0:00:35]} 15. Nd5 {[%emt 0:00:06]} Nd4 {[%emt 0:00:48]} 16. Nxd4 {[%emt 0:00:22]} cxd4 {[%emt 0:00:06]} 17. b4 {[%emt 0:00:53]} b5 {[%emt 0:00:29]} 18. Nxe7+ {[%emt 0:01:26]} Qxe7 {[%emt 0:00:16]} 19. axb5 {[%emt 0:00:04]} axb5 {[%emt 0:00:01]} 20. c5 {[%emt 0:00:01]} Qd7 {[%emt 0:03:57]} 21. h4 {[%emt 0:00:38]} f4 {[%emt 0:01:33]} 22. Qe1 {[%emt 0:05:15]} Rf7 {[%emt 0:04:49]} 23. Ra6 {[%emt 0:05:01]} Rbf8 {[%emt 0:00:49]} 24. Rd6 {[%emt 0:00:56]} Qc8 {[%emt 0:02:00]} 25. gxf4 {[%emt 0:00:28]} exf4 {[%emt 0:00:57]} 26. Bf3 {[%emt 0:00:01]} Be5 {[%emt 0:00:36]} 27. Rd5 {[%emt 0:00:02]} Qc7 {[%emt 0:01:51]} 28. Rg1 {[%emt 0:00:21]} Ra8 {[%emt 0:00:48]} 29. Bb2 {[%emt 0:01:15]} Rd7 {[%emt 0:02:03]} 30. Rg5 {[%emt 0:00:25]} Bf6 {[%emt 0:00:24]} 31. Rxd7 {[%emt 0:00:15]} Bxd7 {[%emt 0:01:26]} 32. e5 {[%emt 0:00:07]} Re8 {[%emt 0:01:07]} 33. Bd5+ {[%emt 0:00:51]} Kf8 {[%emt 0:00:05]} 34. Bxd4 {[%emt 0:00:24]} Bxg5 {[%emt 0:00:18]} 35. hxg5 {[%emt 0:00:03]} Qd8 {[%emt 0:01:24]} 36. Qh4 {[%emt 0:01:07]} Bf5 {[%emt 0:00:05]} 37. Qh6+ {[%emt 0:00:05]} Ke7 {[%emt 0:00:22]} 38. Qg7# {[%emt 0:00:02] Bc8 [%clk 0:00:00]} 1-0

[Event "SWVG Arnold Classic Prestige All 2019"]
[Site "Sandton"]
[Date "2019.05.18"]
[Round "7.5"]
[White "Erlank, Warrick"]
[Black "Khumalo, Keith"]
[Result "1-0"]
[ECO "B90"]
[WhiteElo "1967"]
[BlackElo "2086"]
[Annotator "NA"]
[PlyCount "79"]
[EventDate "2019.05.18"]
[EventType "swiss"]
[EventCountry "RSA"]
[SourceTitle "playchess.com"]
[Source "ChessBase"]
[SourceQuality "1"]
[TimeControl "1500+10"]

1. e4 {[%emt 0:00:00]} c5 {[%emt 0:00:00]} 2. Nf3 {[%emt 0:00:00]} d6 {[%emt 0:00:00]} 3. d4 {[%emt 0:00:00]} cxd4 {[%emt 0:00:01]} 4. Nxd4 {[%emt 0:00:00]} Nf6 {[%emt 0:00:11]} 5. Nc3 {[%emt 0:00:02]} a6 {[%emt 0:00:01]} 6. Be3 {[%emt 0:00:07]} e5 {[%emt 0:00:07]} 7. Nb3 {[%emt 0:00:03]} Be6 {[%emt 0:00:02]} 8. f3 {[%emt 0:00:04]} Nbd7 {[%emt 0:00:01]} 9. g4 {[%emt 0:00:26]} b5 {[%emt 0:00:55]} 10. g5 {[%emt 0:00:25]} Nh5 {[%emt 0:00:02]} 11. Qd2 {[%emt 0:00:15]} Be7 {[%emt 0:00:09]} 12. O-O-O {[%emt 0:00:13] B90: Sicilian Najdorf: Unusual White 6th moves, 6 Be3 Ng4 and 6 Be3 e5} Nb6 {[%emt 0:00:52]} (12... O-O 13. Nd5 Bxd5 14. exd5 f5 15. Rg1 f4 16. Bf2 Bxg5 17. Bh3 Bh6 18. Na5 Kh8 19. Nc6 Qc7 20. Qb4 Ng3 21. Kb1 {½-½ (68) Inarkiev,E (2690)-Sarana,A (2613) Satka 2018}) 13. Bxb6 {[%emt 0:05:09]} Qxb6 {[%emt 0:00:07]} 14. Nd5 {[%emt 0:01:23]} Bxd5 {[%emt 0:00:07]} 15. exd5 {[%emt 0:00:04]} a5 $146 {[%emt 0:01:07]} ({Predecessor:} 15... Nf4 16. h4 O-O 17. Kb1 a5 18. Nc1 b4 19. Ne2 Nh5 20. f4 {0-1 (73) Vikas,S (1346)-Balkishan,A (2026) Bengaluru 2018}) 16. Kb1 {[%emt 0:00:34]} O-O {[%emt 0:00:14]} 17. Nc1 {[%emt 0:01:17]} f5 {[%emt 0:01:56]} 18. Bd3 {[%emt 0:03:49]} Nf4 {[%emt 0:01:06]} 19. h4 {[%emt 0:00:26]} Qc5 {[%emt 0:00:20]} 20. Ne2 {[%emt 0:01:36]} Nxd5 {[%emt 0:02:35]} 21. Bxb5 {[%emt 0:01:34]} Ne3 {[%emt 0:00:51]} 22. Rc1 {[%emt 0:02:41]} a4 {[%emt 0:01:08]} 23. c4 {[%emt 0:00:33]} Bd8 {[%emt 0:00:46]} 24. f4 {[%emt 0:01:03]} Ba5 {[%emt 0:00:36]} 25. Qd3 {[%emt 0:00:02] [#]} Rfb8 {[%emt 0:01:44]} ({Black should try} 25... a3 $1 $17 {[%mdl 512]} 26. b3 (26. bxa3 e4) 26... Rab8) 26. Rh3 {[%emt 0:00:38]} Bb6 {[%emt 0:00:43]} 27. Rc3 {[%emt 0:00:58]} exf4 {[%emt 0:02:23]} 28. Nxf4 {[%emt 0:00:16]} Ng4 {[%emt 0:00:16]} 29. Qd5+ {[%emt 0:00:51]} Qxd5 {[%emt 0:00:11]} 30. Nxd5 {[%emt 0:00:13]} Kf7 {[%emt 0:01:04]} 31. h5 {[%emt 0:00:21]} Bc5 {[%emt 0:00:41]} 32. Rcf3 $18 {[%emt 0:00:33]} g6 {[%emt 0:00:08]} 33. hxg6+ {[%emt 0:00:11]} hxg6 {[%emt 0:00:10]} 34. Rh7+ {[%emt 0:00:05]} Kg8 {[%emt 0:00:04]} 35. Rfh3 {[%emt 0:00:28]} Bd4 {[%emt 0:01:16]} 36. Ne7+ {[%emt 0:00:05]} Kf8 {[%emt 0:00:02]} 37. Nxg6+ {[%emt 0:00:03]} Kg8 {[%emt 0:00:01]} 38. Ne7+ {[%emt 0:00:40] Double Attack} Kf8 {[%emt 0:00:01]} 39. Nxf5 {[%emt 0:00:12]} Be5 {[%emt 0:00:02]} 40. g6 {[%emt 0:00:19]} 1-0

[Event "SWVG Arnold Classic Prestige All 2019"]
[Site "Sandton"]
[Date "2019.05.18"]
[Round "7.8"]
[White "Masiya, Mfundo"]
[Black "Bucceri, Draven"]
[Result "1-0"]
[ECO "C05"]
[WhiteElo "1977"]
[BlackElo "1633"]
[Annotator "NA"]
[PlyCount "36"]
[EventDate "2019.05.18"]
[EventType "swiss"]
[EventCountry "RSA"]
[SourceTitle "playchess.com"]
[Source "ChessBase"]
[SourceQuality "1"]
[TimeControl "1500+10"]

1. e4 {[%emt 0:00:00]} e6 {[%emt 0:00:00]} 2. d4 {[%emt 0:00:00]} d5 {[%emt 0:00:00]} 3. Nd2 {[%emt 0:00:00]} Nf6 {[%emt 0:00:00]} 4. e5 {[%emt 0:00:00]} Nfd7 {[%emt 0:00:00]} 5. f4 {[%emt 0:00:00]} c5 {[%emt 0:00:03]} 6. c3 {[%emt 0:00:00]} Nc6 {[%emt 0:00:02]} 7. Ndf3 {[%emt 0:00:00]} cxd4 {[%emt 0:02:19]} 8. cxd4 {[%emt 0:00:00]} b5 {[%emt 0:01:32]} 9. Bd3 {[%emt 0:00:27]} Qb6 {[%emt 0:00:07]} 10. Ne2 {[%emt 0:00:03]} a5 {[%emt 0:00:15]} 11. O-O {[%emt 0:00:05]} Ba6 {[%emt 0:00:09]} 12. Kh1 {[%emt 0:00:34]} Rc8 {[%emt 0:02:36]} 13. f5 {[%emt 0:00:10]} Nb4 {[%emt 0:01:27]} 14. Bb1 {[%emt 0:00:24]} Qc7 {[%emt 0:01:01]} 15. fxe6 {[%emt 0:00:49]} fxe6 {[%emt 0:00:07]} 16. Ng5 {[%emt 0:00:22]} Qc6 {[%emt 0:00:39]} 17. Nf4 {[%emt 0:02:06]} Be7 {[%emt 0:17:33]} 18. g3 {[%emt 0:23:00]} g6 {[%emt 0:00:10]} 1-0

[Event "SWVG Arnold Classic Prestige All 2019"]
[Site "Sandton"]
[Date "2019.05.18"]
[Round "7.10"]
[White "Klevansky, Aron"]
[Black "Sithole, Collins"]
[Result "0-1"]
[ECO "B08"]
[WhiteElo "1878"]
[BlackElo "1861"]
[Annotator "NA"]
[PlyCount "68"]
[EventDate "2019.05.18"]
[EventType "swiss"]
[EventCountry "RSA"]
[SourceTitle "playchess.com"]
[Source "ChessBase"]
[SourceQuality "1"]
[TimeControl "1500+10"]

1. e4 {[%emt 0:00:00]} d6 {[%emt 0:00:14]} 2. d4 {[%emt 0:00:06]} Nf6 {[%emt 0:00:04]} 3. Nc3 {[%emt 0:00:10]} g6 {[%emt 0:00:10]} 4. Nf3 {[%emt 0:00:33]} Bg7 {[%emt 0:00:12]} 5. Be3 {[%emt 0:00:25]} O-O {[%emt 0:00:29]} 6. Qd2 {[%emt 0:00:23]} Re8 {[%emt 0:00:03]} 7. O-O-O {[%emt 0:01:13]} c6 {[%emt 0:00:06]} 8. Bh6 {[%emt 0:00:12]} Bh8 {[%emt 0:00:03]} 9. h4 {[%emt 0:00:20]} Bg4 {[%emt 0:00:14]} 10. Re1 {[%emt 0:01:33]} Qa5 {[%emt 0:00:04]} 11. Nh2 {[%emt 0:03:51]} Be6 {[%emt 0:00:19]} 12. a3 {[%emt 0:00:35]} b5 {[%emt 0:00:09]} 13. d5 {[%emt 0:02:54]} cxd5 {[%emt 0:00:04]} 14. exd5 {[%emt 0:00:01]} Nxd5 {[%emt 0:00:16]} 15. Nxd5 {[%emt 0:00:14]} Qxd2+ {[%emt 0:00:04]} 16. Kxd2 {[%emt 0:02:45]} Bxd5 {[%emt 0:00:04]} 17. Bxb5 {[%emt 0:00:02]} Bc6 {[%emt 0:00:02]} 18. Bxc6 {[%emt 0:00:52]} Nxc6 {[%emt 0:00:03]} 19. c3 {[%emt 0:00:10]} Rab8 {[%emt 0:00:10]} 20. Kc2 {[%emt 0:01:01]} Rec8 {[%emt 0:00:04]} 21. Nf3 {[%emt 0:00:16]} Rb7 {[%emt 0:00:11]} 22. Re3 {[%emt 0:01:00]} a5 {[%emt 0:00:06]} 23. Re4 {[%emt 0:01:28]} d5 {[%emt 0:00:29]} 24. Re2 {[%emt 0:02:20]} d4 {[%emt 0:00:10]} 25. Rd1 {[%emt 0:00:16]} e5 {[%emt 0:00:20]} 26. g4 {[%emt 0:01:41]} a4 {[%emt 0:00:25]} 27. Rd3 {[%emt 0:01:34]} f5 {[%emt 0:01:52]} 28. gxf5 {[%emt 0:00:15]} gxf5 {[%emt 0:00:02]} 29. Rd1 {[%emt 0:01:46]} d3+ {[%emt 0:00:13]} 30. Rxd3 {[%emt 0:00:48]} e4 {[%emt 0:00:03]} 31. Rd6 {[%emt 0:00:25]} exf3 {[%emt 0:00:32]} 32. Rxc6 {[%emt 0:00:12]} Rxc6 {[%emt 0:00:29]} 33. Re8+ {[%emt 0:00:05]} Kf7 {[%emt 0:00:02]} 34. Rf8+ {[%emt 0:00:25]} Kg6 {[%emt 0:00:15]} 0-1

[Event "SWVG Arnold Classic Prestige All 2019"]
[Site "Sandton"]
[Date "2019.05.18"]
[Round "7.11"]
[White "Van Der Walt, Pierre E."]
[Black "Simpson, Michael M"]
[Result "1-0"]
[ECO "B23"]
[WhiteElo "1993"]
[BlackElo "1995"]
[Annotator "NA"]
[PlyCount "44"]
[EventDate "2019.05.18"]
[EventType "swiss"]
[EventCountry "RSA"]
[SourceTitle "playchess.com"]
[Source "ChessBase"]
[SourceQuality "1"]
[TimeControl "1500+10"]

1. e4 {[%emt 0:00:00]} c5 {[%emt 0:00:00]} 2. Nc3 {[%emt 0:00:00]} a6 {[%emt 0:00:00]} 3. f4 {[%emt 0:00:00]} b5 {[%emt 0:00:00]} 4. Nf3 {[%emt 0:00:02]} Bb7 {[%emt 0:00:00]} 5. d3 {[%emt 0:00:39]} e6 {[%emt 0:00:00]} 6. Be2 {[%emt 0:00:22]} Ne7 {[%emt 0:00:00]} 7. O-O {[%emt 0:00:09]} d5 {[%emt 0:00:01]} 8. exd5 {[%emt 0:00:29]} Nxd5 {[%emt 0:00:02]} 9. Ne5 {[%emt 0:00:36]} g6 {[%emt 0:00:44]} 10. Bf3 {[%emt 0:00:19]} Nxc3 {[%emt 0:00:22]} 11. bxc3 {[%emt 0:00:03]} Qc7 {[%emt 0:00:07]} 12. Qe2 {[%emt 0:02:39]} Nd7 {[%emt 0:00:08]} 13. Re1 {[%emt 0:02:17]} Bg7 {[%emt 0:00:05]} 14. Nxf7 {[%emt 0:02:31]} Kxf7 {[%emt 0:00:28]} 15. Qxe6+ {[%emt 0:00:02]} Kf8 {[%emt 0:00:06]} 16. Qe7+ {[%emt 0:00:07]} Kg8 {[%emt 0:00:06]} 17. Bg4 {[%emt 0:00:20]} Bd5 {[%emt 0:02:19]} 18. Bxd7 {[%emt 0:01:11]} Ra7 {[%emt 0:02:15]} 19. Qe8+ {[%emt 0:00:44]} Bf8 {[%emt 0:00:02]} 20. Be6+ {[%emt 0:00:32]} Bxe6 {[%emt 0:00:05]} 21. Qxe6+ {[%emt 0:00:38]} Kg7 {[%emt 0:00:00]} 22. c4 {[%emt 0:15:00]} Ra8 {[%emt 0:21:50]} 1-0

[Event "SWVG Arnold Classic Prestige All 2019"]
[Site "Sandton"]
[Date "2019.05.19"]
[Round "8.4"]
[White "Zwakala, Ntando"]
[Black "Erlank, Warrick"]
[Result "0-1"]
[ECO "D44"]
[WhiteElo "2088"]
[BlackElo "1967"]
[Annotator "NA RC"]
[PlyCount "78"]
[EventDate "2019.05.18"]
[EventType "swiss"]
[EventCountry "RSA"]
[SourceTitle "playchess.com"]
[Source "ChessBase"]
[SourceQuality "1"]
[TimeControl "1500+10"]

1. Nf3 {[%emt 0:00:00]} Nf6 {[%emt 0:00:00]} 2. c4 {[%emt 0:00:00]} e6 {[%emt 0:00:00]} 3. d4 {[%emt 0:00:03]} d5 {[%emt 0:00:01]} 4. Nc3 {[%emt 0:00:02]} c6 {[%emt 0:00:03]} 5. Bg5 {[%emt 0:00:37]} dxc4 {[%emt 0:00:24]} 6. e4 {[%emt 0:00:13]} b5 {[%emt 0:00:06]} 7. e5 {[%emt 0:00:14]} h6 {[%emt 0:00:05]} 8. Bh4 {[%emt 0:00:56]} g5 {[%emt 0:00:03]} 9. Nxg5 {[%emt 0:00:35]} hxg5 {[%emt 0:00:44]} 10. Bxg5 {[%emt 0:00:03]} Nbd7 {[%emt 0:00:02]} 11. exf6 {[%emt 0:00:08]} Bb7 {[%emt 0:00:34]} 12. Be2 {[%emt 0:01:24]} Bh6 {[%emt 0:05:05] D44: Semi-Slav: Botvinnik System} (12... Qb6 13. Bf3 O-O-O 14. Qe2 Qxd4 15. Rd1 Qe5 16. h4 Bd6 17. Ne4 Bc7 18. g3 c5 19. Bf4 Qf5 20. Nd6+ {½-½ (20) Batrakov,A (2517)-Efremov,A (2564) ICCF email 2015}) 13. Bxh6 $1 {[%emt 0:02:10]} Rxh6 {[%emt 0:00:02]} 14. Qd2 {[%emt 0:00:10]} Rh8 {[%emt 0:01:48]} 15. Bf3 {[%emt 0:01:23]} Qc7 {[%emt 0:02:21]} 16. a4 $146 {[%emt 0:04:39]} ({Predecessor:} 16. h4 O-O-O 17. Ne4 Ne5 18. Be2 Nd3+ 19. Bxd3 Rxd4 20. Nc5 {½-½ (48) Makarov,A (1787)-Ashomkin,M (1985) Irkutsk 2011}) 16... a6 {[%emt 0:04:36]} 17. h3 {[%emt 0:03:53]} O-O-O {[%emt 0:02:26]} 18. O-O {[%emt 0:02:11]} Rdg8 {[%emt 0:01:36]} (18... b4 $15 19. Ne2 Ne5) 19. Kh1 {[%emt 0:03:10]} Nxf6 {[%emt 0:00:37]} 20. Qe3 {[%emt 0:01:17]} b4 {[%emt 0:01:05]} 21. Na2 $2 {[%emt 0:00:36]} (21. Ne2 $17) 21... c5 {[%emt 0:00:34]} 22. dxc5 $2 {[%emt 0:01:22]} (22. Bxb7+ Qxb7 23. f3) 22... Ng4 {[%emt 0:02:28]} 23. Bxb7+ {[%emt 0:00:25]} Qxb7 {[%emt 0:00:38]} 24. Qg3 {[%emt 0:01:10]} Nxf2+ {[%emt 0:00:32]} 25. Qxf2 {[%emt 0:00:15]} Rxh3+ {[%emt 0:00:03]} 26. Kg1 {[%emt 0:00:12]} Rhg3 {[%emt 0:00:03]} 27. c6 {[%emt 0:00:15]} Qxc6 {[%emt 0:00:18]} 28. Qxg3 {[%emt 0:00:05]} Rxg3 {[%emt 0:00:09]} 29. Rf2 {[%emt 0:00:02]} Qxa4 {[%emt 0:00:22]} 30. Rff1 {[%emt 0:00:15]} Qc6 {[%emt 0:00:24]} 31. Rf2 {[%emt 0:00:02]} a5 {[%emt 0:00:03]} 32. Rc1 {[%emt 0:00:07]} Rg4 {[%emt 0:00:21]} 33. Rd1 {[%emt 0:00:15] [#]} Qa4 $1 {[%emt 0:00:23]} 34. b3 {[%emt 0:00:09]} Qxb3 {[%emt 0:00:21]} 35. Re1 {[%emt 0:00:22]} c3 {[%emt 0:00:27]} 36. Nc1 {[%emt 0:00:06]} Qd5 {[%emt 0:00:04]} 37. Ne2 {[%emt 0:00:23]} c2 {[%emt 0:00:28]} 38. Nc3 {[%emt 0:00:20]} bxc3 {[%emt 0:00:17]} 39. Rxc2 {[%emt 0:00:05]} Qd4+ {[%emt 0:00:07]} 0-1